Cogmind - Beta 13 @@@ ROGUE MODE // 2024.05.18 @ 22:47:02 Player: naththebg Result: Destroyed by 4A-YB0(R) with Subdweller Laser Performance ------------- Evolutions (0) 0 Regions Visited (3) 600 Robots Destroyed (70) 350 Value Destroyed (1525) 1525 Prototype IDs (4) 80 Alien Tech Used (0) 0 Bonus (-61) -61 TOTAL SCORE: 2494 Bonus ------- High Alert Combat Kills 19 Friendly Fire -80 Cogmind --------- Core Integrity 0/250 Matter 7/300 Energy 20/100 System Corruption 0% Temperature Cool (6) Movement Core (700) Ox13 Location -10/Subcaves Parts ------- > --- POWER (1) -------- (None) > --- PROPULSION (2) --- (None) > --- UTILITY (2) ------ High-capacity Storage Unit > --- WEAPON (2) ------- (None) > --- INVENTORY (20) --- Improved Ion Engine Improved Ion Engine Improved Ion Engine Light Treads Light Treads Large Storage Unit High-capacity Matter Pod (200) Improved Terrain Scanner Subdweller Machine Gun Subdweller Machine Gun Mini Grenade Launcher Mini Grenade Launcher Mini Grenade Launcher Mini Grenade Launcher Multitool Peak State ------------ > --- POWER ------------ Light Angular Momentum Engine > --- PROPULSION ------- Subdweller Monowheel Subdweller Monowheel > --- UTILITY ---------- Large Storage Unit Improved Terrain Scanner > --- WEAPON ----------- Subdweller Beam Cannon Mini Grenade Launcher > --- INVENTORY -------- Improved Ion Engine Improved Ion Engine Improved Ion Engine Light Treads Light Treads High-capacity Storage Unit High-capacity Matter Pod Light Armor Plating Medium Laser Light Assault Rifle Light Assault Rifle Subdweller Machine Gun Mini Grenade Launcher Mini Grenade Launcher Mini Grenade Launcher [Rating: 19] Favorites ----------- Power Light Angular Momentum Engine Engine Light Angular Momentum Engine Propulsion Light Treads Treads Light Treads Wheel Subdweller Monowheel Utility Improved Terrain Scanner Device Improved Terrain Scanner Storage Large Storage Unit Protection Light Armor Plating Weapon Mini Grenade Launcher Energy Gun Medium Laser Energy Cannon Subdweller Beam Cannon Launcher Mini Grenade Launcher Special Weapon Mining Laser Build | -11 -10 -10 -10 ------- Run | Yrd Mat Min Sub Slots Evolved . | . . . . Power . | . . . . Propulsion . | . . . . Utility . | . . . . Weapon . | . . . . Parts Attached 40 | 8 6 7 19 Power 4 | 1 1 2 . Engine 4 | 1 1 2 . Core . | . . . . Reactor . | . . . . Propulsion 14 | 3 1 1 9 Treads 8 | 2 1 1 4 Leg . | . . . . Wheel 6 | 1 . . 5 Hover . | . . . . Flight . | . . . . Utility 6 | 2 2 . 2 Device 1 | 1 . . . Storage 4 | 1 2 . 1 Processor . | . . . . Hackware . | . . . . Protection 1 | . . . 1 Artifact . | . . . . Weapon 16 | 2 2 4 8 Energy Gun 6 | 2 . 1 3 Energy Cannon 2 | . . . 2 Ballistic Gun . | . . . . Ballistic Cannon . | . . . . Launcher 6 | . 2 2 2 Special Weapon 2 | . . 1 1 Impact Weapon . | . . . . Slashing Weapon . | . . . . Piercing Weapon . | . . . . Special Melee Weapon . | . . . . Unidentified Prototypes . | . . . . Parts Lost 12 | . . 2 10 Power 2 | . . 1 1 Propulsion 6 | . . 1 5 Utility 1 | . . . 1 Weapon 3 | . . . 3 Highest Loss Streak 5 | . . 1 5 To Critical Strikes . | . . . . Average Slot Usage (%) 99 | . 100 100 98 Engine 13 | . 14 14 13 Treads 21 | . 28 28 16 Wheel 5 | . . . 10 Device 9 | . 14 14 5 Storage 14 | . 14 14 14 Protection 4 | . . . 8 Energy Gun 2 | . 5 2 . Energy Cannon 1 | . . . 2 Launcher 23 | . 22 20 24 Special Weapon 1 | . . 5 . Naked Turns . | . . . . Heaviest Build 61 | 14 30 32 61 Greatest Support 40 | 40 40 40 40 Greatest Overweight (x) 2 | . 1 . 2 Average Overweight (x) . | . . . . Largest Inventory Capacity 20 | 8 15 15 20 Average Capacity 14 | 7 10 15 18 Most Carried 17 | 8 11 14 17 Average Carried 12 | 6 9 11 15 Final Capacity 20 | 8 15 15 20 Final Carried 15 | 7 10 14 15 Class Distribution -------------------- 85% | Mutant 14% | Scavenger-Mutant Dominant Class ---------------- Mutant | -10/Materials Mutant | -10/Mines Mutant | -10/Subcaves Resources | -11 -10 -10 -10 ----------- Run | Yrd Mat Min Sub Matter Collected 1589 | 280 305 212 792 Remotely . | . . . . Salvage Created 1554 | 319 510 202 523 Parts 123 | 30 34 23 36 Haulers Intercepted 1 | . 1 . . Recyclers Shooed 5 | . 4 1 . Parts Field Recycled . | . . . . Retrieved Matter . | . . . . Parts Self-Destructed 12 | . . . 12 Prevented . | . . . . Kills | -11 -10 -10 -10 ------- Run | Yrd Mat Min Sub Combat Hostiles Destroyed 35 | . 9 8 18 Guns 2 | . 2 . . Cannons 2 | . . . 2 AOE 31 | . 7 8 16 Classes Destroyed 12 | 3 4 1 4 Worker 8 | 4 2 2 . Builder 4 | . 1 3 . Tunneler 13 | 9 1 3 . Hauler 1 | . 1 . . Recycler 5 | 1 3 1 . Turret 2 | . . . 2 Watcher 2 | . 2 . . Swarmer 8 | . . 6 2 Grunt 13 | . 9 2 2 Sentry 1 | . . . 1 Artisan 1 | . . . 1 Subdweller 13 | . . . 13 Best Kill Streak 6 | 4 3 6 4 Combat Bots Only 3 | . 3 3 3 Max Kills in Single Turn 3 | 1 2 3 2 Gunslinging . | . . . . Exploded 3 | . 2 3 2 Melee . | . . . . Uniques/NPCs Destroyed . | . . . . Combat | -11 -10 -10 -10 -------- Run | Yrd Mat Min Sub Hostile Shots Fired 151 | . 35 14 102 Missed 53 | . 11 4 38 Damage Taken 1738 | . 399 151 1188 Core 265 | . 28 24 213 Absorbed by Shields . | . . . . Core Remaining (%) 100 | 100 . . . Volleys Fired 138 | 26 36 25 51 Largest 2 | 2 2 2 2 Hottest 150 | 90 90 150 130 Shots Fired 232 | 52 59 38 83 Gun 86 | 52 21 6 7 Cannon 19 | . . . 19 Launcher 114 | . 38 20 56 Special 13 | . . 12 1 Kinetic . | . . . . Thermal 118 | 52 21 18 27 Explosive 114 | . 38 20 56 Electromagnetic . | . . . . Robot Hit Streak 22 | 15 22 13 13 Robot Miss Streak 4 | 3 4 3 1 Penetration Max . | . . . . Secondary Targets . | . . . . Shots Hit Robots 134 | 32 29 19 54 Core Hits 104 | 15 31 21 37 Critical Kills 1 | . . . 1 Critical Parts Destroyed . | . . . . Critical Strikes 2 | . 1 . 1 Burn 1 | . 1 . . Meltdown 1 | . . . 1 Melee Attacks . | . . . . Impact . | . . . . Slashing . | . . . . Piercing . | . . . . Sneak Attacks . | . . . . Combat Hostiles . | . . . . Follow-up Attacks . | . . . . Damage Inflicted 6457 | 382 1538 1360 3177 Guns 710 | 382 179 51 98 Cannons 358 | . . . 358 Explosions 5277 | . 1349 1213 2715 Melee . | . . . . Ramming 10 | . 10 . . Kinetic . | . . . . Thermal 1321 | 382 211 266 462 Explosive 5126 | . 1317 1094 2715 Electromagnetic . | . . . . Impact . | . . . . Slashing . | . . . . Piercing . | . . . . Highest Corruption . | . . . . Average Corruption . | . . . . Corruption Purged . | . . . . Corruption Blocked . | . . . . Overload Shots . | . . . . Overflow Damage 180 | . 43 137 . Projectiles . | . . . . Explosions 180 | . 43 137 . Melee . | . . . . Knockbacks . | . . . . Impact . | . . . . Kinetic . | . . . . Secondary . | . . . . Self-Inflicted Damage 245 | . 94 26 125 Shots 16 | . 6 2 8 Rammed 2 | . 2 . . Targets Rammed 2 | . 2 . . Kicked . | . . . . Crushed . | . . . . Highest Temperature 290 | 160 290 67 46 Average Temperature 47 | 46 88 20 14 Received Heat Transfer 495 | . 186 57 252 Siege Activations . | . . . . Robots Corrupted . | . . . . Combat Hostiles . | . . . . Parts Fried . | . . . . Impact Corruptions . | . . . . Robots Melted 1 | . . . 1 Combat Hostiles . | . . . . Parts Melted 6 | 3 3 . . Heat Transferred 2801 | 1016 595 498 692 Parts Sabotaged . | . . . . Parts Stolen . | . . . . Parts Stripped . | . . . . Power Chain Reactions . | . . . . Alert | -11 -10 -10 -10 ------- Run | Yrd Mat Min Sub Peak Influence 478 | 70 478 319 . Initial 136 | . . 136 . Average 209 | 27 279 233 . Maximum Alert Level 2 | . 2 1 . Low Security (%) 48 | 100 24 46 . Level 1 44 | . 56 53 . Level 2 7 | . 18 . . Level 3 . | . . . . Level 4 . | . . . . Level 5 . | . . . . High Security . | . . . . Max Security . | . . . . Squads Dispatched 1 | . 1 . . Investigation . | . . . . Extermination . | . . . . Reinforcement 1 | . 1 . . Assault . | . . . . Garrison . | . . . . Intercept . | . . . . Searches Triggered . | . . . . Construction Impeded . | . . . . Haulers Reinforced . | . . . . Active Scanning Responses . | . . . . Cargo Convoy Interrupts . | . . . . Stealth | -11 -10 -10 -10 --------- Run | Yrd Mat Min Sub Distress Signals 1 | . 1 . . Communications Jammed . | . . . . Distress Signals . | . . . . Times Spotted 60 | . 11 5 44 Peak Tracking Total 5 | . 5 2 5 Tactical Retreats 3 | . . . 3 Traps | -11 -10 -10 -10 ------- Run | Yrd Mat Min Sub Traps Triggered 3 | . . . 3 Indirectly . | . . . . Trap Hack Attempts . | . . . . Triggered . | . . . . Disarmed . | . . . . Reprogrammed . | . . . . Reused . | . . . . Traps Extracted . | . . . . Installed . | . . . . Triggered . | . . . . Machines | -11 -10 -10 -10 ---------- Run | Yrd Mat Min Sub Machines Disabled 18 | . 9 6 3 Max in Single Turn 4 | . 2 4 2 Machines Repaired . | . . . . Machines Dismantled . | . . . . Machines Sabotaged . | . . . . Overloaded Fab Kills . | . . . . Hacking | -11 -10 -10 -10 --------- Run | Yrd Mat Min Sub Machines Accessed 4 | . 4 . . Terminals 3 | . 3 . . Fabricators . | . . . . Repair Stations 1 | . 1 . . Recycling Units . | . . . . Scanalyzers . | . . . . Garrison Access . | . . . . Total Hacks 11 | . 11 . . Successful 2 | . 2 . . Failed 8 | . 8 . . Catastrophic 1 | . 1 . . Database Lockouts 1 | . 1 . . Manual 12 | . 12 . . Terminals 10 | . 10 . . Fabricators . | . . . . Repair Stations 1 | . 1 . . Recycling Units . | . . . . Scanalyzers . | . . . . Garrison Access . | . . . . Terminal Hacks 2 | . 2 . . Prototype ID Bank 2 | . 2 . . Fabricator Hacks . | . . . . Repair Station Hacks . | . . . . Recycling Unit Hacks . | . . . . Scanalyzer . | . . . . Garrison Access Hacks . | . . . . Unauthorized Hacks . | . . . . Terminals . | . . . . Fabricators . | . . . . Repair Stations . | . . . . Recycling Units . | . . . . Scanalyzers . | . . . . Garrison Access . | . . . . Data Cores Recovered . | . . . . Used . | . . . . Hacking Detections 4 | . 4 . . Full Trace Events . | . . . . Feedback Events . | . . . . Feedback Blocked . | . . . . Robot Schematics Acquired . | . . . . Robots Built . | . . . . Authchips . | . . . . Time . | . . . . Total Robot Build Rating . | . . . . Part Schematics Acquired . | . . . . Parts Built . | . . . . Authchips . | . . . . Time . | . . . . Total Part Build Rating . | . . . . Parts Repaired . | . . . . Time . | . . . . Parts Recycled . | . . . . Recycled Matter . | . . . . Retrieved Matter . | . . . . Retrieved Components . | . . . . Parts Scanalyzed . | . . . . Part Schematics Acquired . | . . . . Parts Damaged . | . . . . Bothacking | -11 -10 -10 -10 ------------ Run | Yrd Mat Min Sub Used RIF Installer . | . . . . Robots Hacked . | . . . . Non-combat . | . . . . Combat . | . . . . Robot Hacks Applied . | . . . . Relay Couplers Released . | . . . . Fabnet Peak Effective % . | . . . . Robots Rewired . | . . . . Allies Hacked . | . . . . Hacks Repelled . | . . . . Allies | -11 -10 -10 -10 -------- Run | Yrd Mat Min Sub Total Allies . | . . . . Largest Group . | . . . . Highest-Rated Group . | . . . . Highest-Rated Ally . | . . . . Total Orders . | . . . . Ally Attacks . | . . . . Total Damage . | . . . . Kills . | . . . . Allies Corrupted . | . . . . Allies Melted . | . . . . Intel | -11 -10 -10 -10 ------- Run | Yrd Mat Min Sub Robot Analysis Total . | . . . . Derelict Logs Recovered 4 | . . 2 2 Drone Launches . | . . . . Drone Recoveries . | . . . . Exploration | -11 -10 -10 -10 ------------- Run | Yrd Mat Min Sub Turns Passed 4931 | 505 956 1087 2383 Spaces Moved 2585 | 218 508 484 1375 Core 27 | 27 . . . Treads 1784 | 191 508 484 601 Legs . | . . . . Wheels 774 | . . . 774 Hover . | . . . . Flight . | . . . . Fastest Speed 50 | 50 160 160 110 Average Speed 156 | 146 160 160 154 Slowest Speed 240 | 160 240 160 240 Overloaded Moves . | . . . . Propulsion Burnouts . | . . . . Robots Hopped . | . . . . Cave-ins Triggered . | . . . . Exploration Rate (%) 50 | 9 62 61 70 Regions Visited 3 Branch Regions 2 Pre-discovered Areas 3 | . . 1 2 Known Exits Taken . | . . . . Unknown Exits Taken 3 | 1 1 1 . Scrap Searched 7 | . . 1 6 Spaces Dug 21 | . 21 . . Terrain Destroyed 777 | . 281 175 321 Melee . | . . . . Projectile 6 | . . 4 2 AOE 771 | . 281 171 319 Terrain Rammed . | . . . . Walls Destroyed . | . . . . Machines Disabled . | . . . . Actions | -11 -10 -10 -10 --------- Run | Yrd Mat Min Sub Total 3220 | 352 595 732 1541 Wait 395 | 86 20 211 78 Move 2582 | 217 507 483 1375 Hop . | . . . . Pick Up 42 | 14 12 6 10 Fast Attach 1 | . . . 1 Attach 17 | 8 1 2 6 Detach 3 | 1 1 . 1 Swap 22 | . 5 5 12 Drop 18 | . 11 . 7 Fire 138 | 26 36 25 51 Melee . | . . . . Ram . | . . . . Kick . | . . . . Crush 2 | . 2 . . Escape Stasis . | . . . . Rewire . | . . . . Trap . | . . . . Miscellaneous . | . . . . Route ------- -11/Scrapyard -10/Materials (discovered 3 exits: [*Mat x2] / [*Min]) -10/Mines (discovered 2 exits: [*Mat] / [*Sub]) -10/Subcaves (discovered 2 exits: [*Mat] / [*Rec]) History --------- Turn | Location | Event 42 | -11/Scrapyard | Discovered new exit (range 16) 506 | -11/Scrapyard | Entered Materials 507 | -10/Materials | Build established: Mutant 702 | -10/Materials | Discovered new exit (range 16) 921 | -10/Materials | Discovered new exit (range 12) 948 | -10/Materials | Central database locked down 1244 | -10/Materials | Discovered new exit (range 11) 1462 | -10/Materials | Entered Mines 1477 | -10/Mines | Met a Derelict bent on vengeance 1516 | -10/Mines | Learned location of 2 exits from Materials 1522 | -10/Mines | Learned location of Zion (-6) 1586 | -10/Mines | Discovered new exit (range 10) 2308 | -10/Mines | Joined a pair of Derelicts in attacking an 0b10 outpost 2536 | -10/Mines | Discovered new exit (range 6) 2549 | -10/Mines | Entered Subcaves 2557 | -10/Subcaves | Discovered new exit (range 5) 2616 | -10/Subcaves | Shifting Twisted Machinery released Sub. Machine Gun 2642 | -10/Subcaves | Shifting Twisted Machinery released Sub. Power Source 2644 | -10/Subcaves | Shifting Twisted Machinery released Mak. Shrapnel Gun 2646 | -10/Subcaves | Met a Zionite searching for "candidates" 3068 | -10/Subcaves | Build established: Scavenger-Mutant 3238 | -10/Subcaves | Discovered new exit (range 9) 3411 | -10/Subcaves | Learned 8 Materials zone layouts 3787 | -10/Subcaves | Build established: Mutant 3822 | -10/Subcaves | Ambushed by Subdweller buried in earth 4110 | -10/Subcaves | Ambushed by angry Subdweller bent on revenge 4484 | -10/Subcaves | Core integrity fell below 50% 4558 | -10/Subcaves | A swath of the cavern ceiling suddenly collapsed 4888 | -10/Subcaves | Ambushed by Subdweller buried in earth 4915 | -10/Subcaves | Core integrity fell below 20% 4932 | -10/Subcaves | Destroyed by 4A-YB0(R) with Subdweller Laser Last Messages --------------- Destroyed Scrap Shield. NI-QAX(R) destroyed. The unstable cave ceiling collapses. Acquired 3 matter. The unstable cave ceiling collapses. 5C-6KR(R) destroyed. Acquired 19 matter. Acquired Sub. Monowheel. The unstable cave ceiling collapses. Acquired Sub. Machine Gun. Lgt. Armor Plating destroyed. T1-LO4(R): "NOSTUCKSUB!" EN-FAC(R) emerges from concealment. Sub. Monowheel destroyed. Lgt. Angular Momentum Engine destroyed. Sub. Laser destroyed. Med. Laser destroyed. T1-LO4(R) destroyed. Destroyed Scrap Shield. Sub. Beam Cannon destroyed. Map ----- +----------------------------------------------------+ | ????????????????????????????????????????? | | ????????????????????????????????????????? | | ????????????????????????????????????????? | | ????????????????????????????????????????? | | ????????????????????????????????????????? | | ????????????????????????????????????????? | | ????????????????????????????????????????? | | ????????????????????????????????????????? | | ????????????????????????????????????????? | | ????????????????????????????????????????? | | ????????????????????????????????????????? | | ????????????????????????????????????????? | | ????????????????????????????????????????? | | ????????????????????????????????????????? | | ????????????????????????????????????????? | | ????????????????????????????????????????? | | ????????????????????????????????????????? | | ????????????????????????????????????????? | | ?????????????????#???###????????????????? | | ????????????????"#####"##???????????????? | | ???????????????" # ##"""##??????????????? | | ??????????????? ? """ ##?????????????? | | ?????????????## ##?#"" ""#?????????????? | | ?????????????# ###" #?????????????? | | ?????????##### ?#"" R #?????????????? | | ????????## ##" R[ @#?????????????? | | ???????## "" ## ##?????????????? | | ???????# """"" ####??????????????? | | ???????# " " " ##????????????????? | | ???????# ###"" #????????????????? | | ???????# # #????????????????? | | ????????# # ##???????????????? | | ???????## "" #???????????????? | | ???????# " ## #??????????????? | | ???????### " ##?# #??????????????? | | ?????????## ##?###??????????????? | | ??????????### #??????????????????? | | ????????????### ###????????????????? | | ????????????### #????????????????? | | ??????????### ! ##???????????????? | | ??????????# ! ##??????????????? | | ??????????# ##?????????????? | | ??????????## #?????????????? | | ???????#??## & ##?????????????? | | ???????# ## ## ##??????????????? | | ???????# ##??????????????? | | ???????## # #??????????????? | | ?????? ## #??????????????? | | ???? ## #?## ##??????????????? | | ??? ##??##???# ##???????????????? | +----------------------------------------------------+ Best States ------------- Heat Dissipation 25 Energy Generation 18 Energy Capacity 265 Matter Stores 300 Matter Capacity 300 Sight Range 16 Terrain Scan Range 16 Terrain Scan Density 10 Armor Coverage 150 Evasion (%) 50 Recoil Reduction 2 Item Schematics ----------------- None Robot Schematics ------------------ None Fabricated ------------ Nothing Alien Tech Used ----------------- None Achievements -------------- None Challenges ------------ None Game ------ Seed MatterNavigationTube Manual? 0 Play Time 00:34:20 Cumulative 65.8 hours Start 2024.05.18 @ 22:13:14 End 2024.05.18 @ 22:47:02 Sessions 1 Manual Loads 0 Difficulty Rogue Special Mode None Game No. 36 Rogue 36 Adventurer 0 Explorer 0 Win Type - Total 2 Types 2/0/0/0/0/0/0/0/0 Lore% 27 Gallery% 50 Achievement% 43 Wizard Run 0 Options --------- Layout 1 ASCII 0 Keyboard 0 Movement Mouse Keybinds 0 Fullscreen 1 Font 24/Smallcaps Map View 50x35 Zoom Use 0% Tactical HUD 0 Map Filters NONE Filters NONE Steam 1 RUN: c7644885-1721-4e07-9a2d-aeb7368f65c8